bitfinex/quotes_ETHUSD_20250628
["timestamp","ask_amount","ask_price","bid_price","bid_amount"]
[1751091976632,4.12137774,2427.0,2426.8,0.7526]
[1751091977126,4.12131454,2427.0,2426.8,0.7526]
[1751091977808,0.001,2427.0,2426.8,0.7526]
[1751091978622,4.12132042,2427.0,2426.8,0.7526]
[1751091978923,0.001,2427.0,2426.8,0.7526]
[1751091984838,0.001,2427.0,2426.8,0.9582]
[1751091990839,0.001,2427.0,2426.9,0.9669]
[1751091991514,0.001,2427.0,2426.9,1.47566204]
[1751091999768,0.001,2427.0,2426.9,15.59614496]
[1751092000279,0.001,2427.1,2427.0,15.47131314]
[1751092000462,0.001,2427.1,2427.0,22.08731314]
[1751092000622,0.001,2427.1,2427.0,23.9952445]
[1751092001162,0.001,2427.1,2427.0,23.4452445]
[1751092002646,0.001,2427.1,2427.0,29.96094815]
[1751092004389,0.001,2427.1,2427.0,18.5062445]
[1751092004581,0.001,2427.1,2427.0,25.1232445]
[1751092007575,0.001,2427.1,2427.0,31.63894815]
[1751092014402,0.001,2427.1,2427.0,32.18894815]
[1751092022481,0.001,2427.1,2427.0,16.8292445]
[1751092022683,0.001,2427.1,2427.0,25.1352445]
[1751092032326,0.001,2427.1,2427.0,16.8292445]
[1751092032503,0.001,2427.1,2427.0,24.3342445]
[1751092033323,0.001,2427.1,2427.0,17.7122445]
[1751092033524,0.001,2427.1,2427.0,24.3332445]
[1751092040436,0.001,2427.1,2427.0,30.84894815]
[1751092044152,0.001,2427.1,2427.0,22.54394815]
[1751092044354,0.001,2427.1,2427.0,10.73931314]
[1751092044654,0.001,2427.1,2427.0,20.73931314]
[1751092047552,0.001,2427.1,2427.0,10.0]
[1751092047731,0.001,2427.1,2427.0,16.62]
[1751092048528,0.001,2427.1,2427.0,10.0]
[1751092048863,0.001,2427.1,2427.0,16.629]
[1751092050845,0.001,2427.1,2427.0,6.629]
[1751092055282,0.001,2427.1,2427.0,10.74931314]
[1751092057091,0.001,2427.1,2427.0,4.12031314]
[1751092057299,0.001,2427.2,2427.1,0.25549911]
[1751092057599,0.001,2427.2,2427.1,6.88249911]
[1751092057782,0.001,2427.2,2427.1,7.08809911]
[1751092063187,0.001,2427.2,2427.1,11.20824249]
[1751092077609,0.001,2427.2,2427.1,7.08809911]
[1751092078007,0.001,2427.2,2427.1,11.20524249]
[1751092078312,0.001,2427.2,2427.1,11.20424249]
[1751092081695,0.001,2427.2,2427.1,10.94874338]
[1751092087006,0.001,2427.2,2427.1,6.8286]
[1751092088342,0.001,2427.2,2427.1,10.94874338]
[1751092094341,0.001,2427.2,2427.1,13.18561169]
[1751092100060,0.001,2427.2,2427.1,6.56261169]
[1751092100265,0.001,2427.2,2427.1,13.18161169]
[1751092102650,0.001,2427.2,2427.1,17.74334959]
[1751092102857,0.001,2427.2,2427.1,13.62320621]
[1751092103046,0.001,2427.2,2427.1,11.3863379]
[1751092103863,0.001,2427.2,2427.1,6.8236]
[1751092106458,0.001,2427.2,2427.1,11.3853379]
[1751092107579,0.001,2427.2,2427.1,4.7673379]
[1751092107728,0.001,2427.2,2427.1,11.3843379]
[1751092112072,0.001,2427.2,2427.1,15.50448128]
[1751092112367,0.001,2427.2,2427.1,18.00151347]
[1751092113146,0.001,2427.2,2427.1,18.78851347]
[1751092118674,0.001,2427.2,2427.1,14.66837009]
[1751092118841,0.001,2427.2,2427.1,16.29148128]
[1751092128558,0.001,2427.2,2427.1,26.29148128]
[1751092139707,0.001,2427.2,2427.1,19.67448128]
[1751092139872,0.001,2427.2,2427.1,25.50048128]
[1751092142174,0.001,2427.2,2427.1,18.88748128]
[1751092142473,0.001,2427.2,2427.1,25.50148128]
[1751092148814,0.001,2427.2,2427.1,18.88748128]
[1751092148997,0.001,2427.2,2427.1,25.50048128]
[1751092149708,0.001,2427.2,2427.1,18.88748128]
[1751092150010,0.001,2427.2,2427.1,25.49948128]
[1751092174222,0.001,2427.2,2427.1,10.2056]
[1751092174550,0.001,2427.2,2427.1,16.8176]
[1751092175450,0.001,2427.2,2427.1,10.2056]
[1751092175652,0.001,2427.2,2427.1,16.8176]
[1751092178058,0.001,2427.2,2427.1,25.49948128]
[1751092181659,0.001,2427.2,2427.1,18.88748128]
[1751092181826,0.001,2427.2,2427.1,25.49948128]
[1751092196673,0.001,2427.2,2427.1,16.8176]
[1751092197473,0.001,2427.2,2427.1,20.93774338]
[1751092197773,0.001,2427.2,2427.1,16.8176]
[1751092200293,0.001,2427.2,2426.7,4.1207199]
[1751092200443,0.2066,2427.2,2426.8,6.8176]
[1751092200787,0.64279055,2427.2,2426.8,6.8176]
[1751092201087,0.64279055,2427.2,2426.8,11.3793379]
[1751092202382,0.64279055,2427.2,2426.9,6.612]
[1751092202681,0.64279055,2427.2,2426.8,10.2056]
[1751092202886,4.76278834,2427.2,2426.9,6.612]
[1751092203044,0.47627883,2427.1,2426.9,6.612]
[1751092204080,0.64279055,2427.2,2426.9,6.612]
[1751092204255,0.2066,2427.2,2426.9,6.612]
[1751092209689,0.2056,2427.3,2426.9,6.612]
[1751092210628,4.32544393,2427.3,2426.9,6.612]
[1751092210767,0.2056,2427.3,2426.9,6.612]
[1751092211283,4.11998319,2427.2,2426.9,6.612]
[1751092211489,4.32547292,2427.3,2426.9,6.612]
[1751092211666,1.01106349,2427.2,2426.9,6.612]
[1751092214673,4.32547292,2427.3,2426.9,6.612]
[1751092216396,4.11997423,2427.2,2426.9,6.612]
[1751092217603,4.32547642,2427.3,2426.9,6.612]
[1751092218096,4.11997482,2427.2,2426.9,6.612]
[1751092218493,4.32543063,2427.3,2426.9,6.612]
[1751092218693,5.33657686,2427.3,2426.9,6.612]
[1751092219103,0.6,2427.1,2426.9,6.612]
[1751092221108,1.679,2427.4,2427.0,0.9862]
[1751092221610,5.79864198,2427.4,2427.0,0.9862]
[1751092222887,4.11981722,2427.3,2427.0,0.9862]
[1751092223192,1.01249159,2427.3,2427.0,0.9862]
[1751092225188,4.11997363,2427.2,2426.8,6.612]
[1751092225390,4.11997363,2427.2,2426.9,0.2056]
[1751092225595,5.23364608,2427.2,2426.9,0.2056]
[1751092226100,4.12018792,2427.1,2426.9,0.2056]
[1751092227108,1.11367245,2427.2,2426.9,0.2056]
[1751092227312,4.12007184,2427.2,2426.9,0.2056]
[1751092228384,4.32542724,2427.3,2426.9,0.2056]
[1751092229112,0.6,2427.1,2426.9,0.2056]
[1751092236218,4.7202275,2427.1,2426.9,0.2056]
[1751092237228,4.12031314,2427.0,2426.9,0.2056]
[1751092237393,4.12031314,2427.0,2426.7,6.612]
[1751092237810,0.8056,2427.1,2426.6,0.2056]
[1751092238087,0.8056,2427.1,2426.5,0.2056]
[1751092238088,4.12082251,2426.7,2426.5,0.2056]
[1751092238314,4.55346476,2426.7,2426.5,0.2056]
[1751092238526,4.12082251,2426.7,2426.5,0.2056]
[1751092239129,4.12071598,2426.8,2426.5,0.2056]
[1751092245332,4.12086489,2426.7,2426.5,0.2056]
[1751092245697,4.72099233,2426.6,2426.2,10.0]
[1751092245896,4.12099233,2426.6,2426.2,6.8186]
[1751092248010,4.12132569,2426.5,2426.1,10.7836]
[1751092248236,4.32692569,2426.5,2426.1,10.7836]
[1751092249421,0.2056,2426.5,2426.1,10.7836]
[1751092255409,6.5233701,2426.3,2426.1,0.002]
[1751092255612,5.14750876,2426.2,2426.1,0.002]
[1751092255937,5.69750876,2426.2,2426.1,0.002]
[1751092261453,1.02583701,2426.2,2426.1,0.002]
[1751092261623,6.60727175,2426.2,2426.1,0.002]
[1751092262755,7.15727175,2426.2,2426.1,0.002]
[1751092285952,37.15727175,2426.2,2426.1,0.002]
[1751092292380,35.47727175,2426.2,2426.1,0.002]
[1751092292540,50.29764185,2426.2,2426.1,0.002]
[1751092292738,49.69764185,2426.2,2426.1,0.002]
[1751092293039,53.71096609,2426.2,2426.1,0.002]
[1751092298570,54.31096609,2426.2,2426.1,0.002]
[1751092298975,24.31096609,2426.2,2426.1,0.002]
[1751092299159,54.31096609,2426.2,2426.1,0.002]
[1751092301694,24.31096609,2426.2,2426.1,0.002]
[1751092301864,54.31096609,2426.2,2426.1,0.002]
[1751092306770,24.31096609,2426.2,2426.1,0.002]
[1751092314020,17.78759599,2426.2,2426.1,0.002]
[1751092314573,22.35631526,2426.2,2426.1,0.002]
[1751092330840,15.73931526,2426.2,2426.1,0.002]
[1751092331050,18.34199102,2426.2,2426.1,0.002]
[1751092348226,12.86471927,2426.2,2426.1,0.002]
[1751092349862,16.98639102,2426.2,2426.1,0.002]
[1751092350251,27.53639102,2426.2,2426.1,0.002]
[1751092366778,62.10511029,2426.2,2426.1,0.002]
[1751092367066,61.54971526,2426.2,2426.1,0.002]
[1751092368753,31.54971526,2426.2,2426.1,0.002]
[1751092368953,61.54971526,2426.2,2426.1,0.002]
[1751092371665,31.54971526,2426.2,2426.1,0.002]
[1751092371964,61.54971526,2426.2,2426.1,0.002]
[1751092373954,31.54971526,2426.2,2426.1,0.002]
[1751092374155,61.54971526,2426.2,2426.1,0.002]
[1751092377152,54.93371526,2426.2,2426.1,0.002]
[1751092377356,61.54971526,2426.2,2426.1,0.002]
[1751092384863,31.54971526,2426.2,2426.1,0.002]
[1751092385307,61.54971526,2426.2,2426.1,0.002]
[1751092390271,22.96667175,2426.2,2426.1,0.002]
[1751092392887,52.96667175,2426.2,2426.1,0.002]
[1751092396807,22.96667175,2426.2,2426.1,0.002]
[1751092397010,52.96667175,2426.2,2426.1,0.002]
[1751092398313,52.96567175,2426.2,2426.1,0.002]
[1751092398481,56.97899599,2426.2,2426.1,0.002]
[1751092414239,26.97899599,2426.2,2426.1,0.002]
[1751092414422,56.97899599,2426.2,2426.1,0.002]
[1751092414616,26.97899599,2426.2,2426.1,0.002]
[1751092414814,56.97899599,2426.2,2426.1,0.002]
[1751092425678,26.97899599,2426.2,2426.1,0.002]
[1751092425842,56.97899599,2426.2,2426.1,0.002]
[1751092431074,26.97899599,2426.2,2426.1,0.002]
[1751092431286,56.97899599,2426.2,2426.1,0.002]
[1751092438804,56.97799599,2426.2,2426.1,0.002]
[1751092447829,61.54671526,2426.2,2426.1,0.002]
[1751092448623,31.54671526,2426.2,2426.1,0.002]
[1751092448819,61.54671526,2426.2,2426.1,0.002]
[1751092449619,14.32744163,2426.1,2426.0,0.002]
[1751092449787,54.95476587,2426.1,2426.0,0.002]
[1751092456426,24.95476587,2426.1,2426.0,0.002]
[1751092456633,54.95476587,2426.1,2426.0,0.002]
[1751092458932,56.63276587,2426.1,2426.0,0.002]
[1751092462437,26.63276587,2426.1,2426.0,0.002]
[1751092462619,56.63276587,2426.1,2426.0,0.002]
[1751092465740,26.63276587,2426.1,2426.0,0.002]
[1751092465940,56.63276587,2426.1,2426.0,0.002]
[1751092471170,26.63276587,2426.1,2426.0,0.002]
[1751092471668,56.63276587,2426.1,2426.0,0.002]
[1751092473271,54.58748514,2426.1,2426.0,0.002]
[1751092473574,61.20148514,2426.1,2426.0,0.002]
[1751092483481,56.63276587,2426.1,2426.0,0.002]
[1751092488119,26.63276587,2426.1,2426.0,0.002]
[1751092488416,56.63276587,2426.1,2426.0,0.002]
[1751092489911,57.18276587,2426.1,2426.0,0.002]
[1751092490117,53.16944163,2426.1,2426.0,0.002]
[1751092493225,53.16944163,2426.1,2426.0,0.7976]
[1751092494609,53.16944163,2426.1,2426.0,0.002]
[1751092496221,23.16944163,2426.1,2426.0,0.002]
[1751092496421,53.16944163,2426.1,2426.0,0.002]
[1751092497932,23.16944163,2426.1,2426.0,0.002]
[1751092498099,53.16944163,2426.1,2426.0,0.002]
[1751092500632,46.55544163,2426.1,2426.0,0.002]
[1751092500954,57.7371609,2426.1,2426.0,0.002]
[1751092504238,27.7371609,2426.1,2426.0,0.002]
[1751092504426,57.7371609,2426.1,2426.0,0.002]
[1751092505934,27.7371609,2426.1,2426.0,0.002]
[1751092506149,57.7371609,2426.1,2426.0,0.002]
[1751092510641,27.7371609,2426.1,2426.0,0.002]
[1751092510934,57.7371609,2426.1,2426.0,0.002]
[1751092513245,27.7371609,2426.1,2426.0,0.002]
[1751092513544,57.7371609,2426.1,2426.0,0.002]
[1751092515311,61.75048514,2426.1,2426.0,0.002]
[1751092519952,31.75048514,2426.1,2426.0,0.002]
[1751092520133,61.75048514,2426.1,2426.0,0.002]
[1751092531272,31.75048514,2426.1,2426.0,0.002]
[1751092531576,61.75048514,2426.1,2426.0,0.002]
[1751092534872,31.75048514,2426.1,2426.0,0.002]
[1751092535174,61.75048514,2426.1,2426.0,0.002]
[1751092537090,31.75048514,2426.1,2426.0,0.002]
[1751092537251,61.75048514,2426.1,2426.0,0.002]
[1751092540377,31.75048514,2426.1,2426.0,0.002]
[1751092540677,61.75048514,2426.1,2426.0,0.002]
[1751092544607,31.75048514,2426.1,2426.0,0.002]
[1751092544879,61.75048514,2426.1,2426.0,0.002]
[1751092547785,31.75048514,2426.1,2426.0,0.002]
[1751092548287,61.75048514,2426.1,2426.0,0.002]
[1751092551305,31.75048514,2426.1,2426.0,0.002]
[1751092551470,61.75048514,2426.1,2426.0,0.002]
[1751092557905,31.75048514,2426.1,2426.0,0.002]
[1751092558212,61.75048514,2426.1,2426.0,0.002]
[1751092560122,31.75048514,2426.1,2426.0,0.002]
[1751092560418,61.75048514,2426.1,2426.0,0.002]
[1751092562321,31.75048514,2426.1,2426.0,0.002]
[1751092562530,61.75048514,2426.1,2426.0,0.002]
[1751092564520,44.67201154,2426.0,2425.9,0.002]
[1751092564709,55.29633578,2426.0,2425.9,0.002]
[1751092569022,25.29633578,2426.0,2425.9,0.002]
[1751092569228,55.29633578,2426.0,2425.9,0.002]
[1751092573611,51.28301154,2426.0,2425.9,0.002]
[1751092575095,21.28301154,2426.0,2425.9,0.002]
[1751092575336,51.28301154,2426.0,2425.9,0.002]
[1751092576034,21.28301154,2426.0,2425.9,0.002]
[1751092576834,51.28301154,2426.0,2425.9,0.002]
[1751092577038,25.29633578,2426.0,2425.9,0.002]
[1751092577927,26.97333578,2426.0,2425.9,0.002]
[1751092586738,14.67201154,2426.0,2425.9,0.002]
[1751092586936,27.52873081,2426.0,2425.9,0.002]
[1751092588355,19.24073081,2426.0,2425.9,0.002]
[1751092588645,27.52873081,2426.0,2425.9,0.002]
[1751092602775,27.52673081,2426.0,2425.9,0.002]
[1751092602980,19.24073081,2426.0,2425.9,0.002]
[1751092603281,27.73233081,2426.0,2425.9,0.002]
[1751092604365,19.44633081,2426.0,2425.9,0.002]
[1751092604566,27.73233081,2426.0,2425.9,0.002]
[1751092610480,19.44633081,2426.0,2425.9,0.002]
[1751092610680,27.73233081,2426.0,2425.9,0.002]
[1751092618376,31.74565505,2426.0,2425.9,0.002]
[1751092621210,27.73233081,2426.0,2425.9,0.002]
[1751092623523,19.44633081,2426.0,2425.9,0.002]
[1751092623682,27.73133081,2426.0,2425.9,0.002]
[1751092626321,21.12233081,2426.0,2425.9,0.002]
[1751092626521,27.73133081,2426.0,2425.9,0.002]
[1751092634721,19.44633081,2426.0,2425.9,0.002]
[1751092634926,27.73033081,2426.0,2425.9,0.002]
[1751092636634,19.44633081,2426.0,2425.9,0.002]
[1751092636822,27.73033081,2426.0,2425.9,0.002]
[1751092638333,19.44633081,2426.0,2425.9,0.002]
[1751092638705,27.73033081,2426.0,2425.9,0.002]
[1751092643111,10.0,2426.0,2425.9,0.002]
[1751092643316,18.284,2426.0,2425.9,0.002]
[1751092643540,22.40601154,2426.0,2425.9,0.002]
[1751092643752,15.79701154,2426.0,2425.9,0.002]
[1751092644244,14.12201154,2426.0,2425.9,0.002]
[1751092644448,15.79701154,2426.0,2425.9,0.002]
[1751092644946,16.24371927,2426.0,2425.9,0.002]
[1751092645311,14.56871927,2426.0,2425.9,0.002]
[1751092645516,20.36573081,2426.0,2425.9,0.002]
[1751092646220,18.69073081,2426.0,2425.9,0.002]
[1751092646819,20.36573081,2426.0,2425.9,0.002]
[1751092647563,18.69073081,2426.0,2425.9,0.002]
[1751092647767,20.36573081,2426.0,2425.9,0.002]
[1751092648239,18.69073081,2426.0,2425.9,0.002]
[1751092648445,16.24371927,2426.0,2425.9,0.002]
[1751092648856,2.225,2426.1,2425.9,0.002]
[1751092649052,2.225,2426.1,2426.0,0.7545]
[1751092651161,1.675,2426.1,2426.0,0.7545]
[1751092652258,0.55,2426.2,2426.0,0.7545]
[1751092652458,2.225,2426.2,2426.0,0.7545]
[1751092652959,0.55,2426.2,2426.0,0.7545]
[1751092653156,1.675,2426.2,2426.0,0.7545]
[1751092653565,1.675,2426.2,2426.0,1.26312508]
[1751092653741,1.675,2426.2,2426.0,0.7545]
[1751092654143,5.79671827,2426.2,2426.0,0.7545]
[1751092654441,10.36543754,2426.2,2426.0,0.7545]
[1751092655274,6.24371927,2426.2,2426.0,0.7545]
[1751092655579,10.3654077,2426.2,2426.0,0.7545]
[1751092656274,6.24371927,2426.2,2426.0,0.7545]
[1751092656991,10.36540609,2426.2,2426.0,0.7545]
[1751092657337,6.24371927,2426.2,2426.0,0.7545]
[1751092663486,10.36541839,2426.2,2426.0,0.7545]
[1751092666283,6.24371927,2426.2,2426.0,0.7545]
[1751092667266,1.675,2426.2,2426.0,0.7545]
[1751092667468,11.571,2426.5,2426.1,0.7724]
[1751092667666,1.675,2426.5,2426.3,0.978]
[1751092667866,9.000645,2427.1,2426.4,4.89359905]
[1751092668064,1.676,2427.1,2426.5,4.12105929]
[1751092668274,11.676,2427.1,2426.8,0.7724]
[1751092669178,15.79619102,2427.1,2426.8,0.7724]
[1751092670092,20.36491029,2427.1,2426.8,0.7724]
[1751092670589,15.79619102,2427.1,2426.8,0.7724]
[1751092671793,4.12132465,2427.0,2426.8,0.7724]
[1751092673898,4.12048292,2426.9,2426.8,0.7724]
[1751092674105,4.12137929,2427.0,2426.8,0.7724]
[1751092676802,0.001,2427.0,2426.8,0.7724]
[1751092677006,4.12131998,2427.0,2426.8,0.7724]
[1751092677909,4.12048292,2426.9,2426.8,0.7724]
[1751092680517,4.12065271,2426.8,2426.7,0.2056]
[1751092680683,4.12106591,2426.6,2426.4,0.8062]
[1751092680883,4.12106591,2426.6,2426.5,0.2056]
[1751092681909,4.12147948,2426.4,2426.1,0.8062]
[1751092682078,4.12147948,2426.4,2426.2,0.2056]
[1751092682278,4.12122444,2426.5,2426.2,0.2056]
[1751092686106,4.67103205,2426.6,2426.2,0.2056]
[1751092686708,4.12116292,2426.5,2426.2,0.2056]
[1751092687210,0.55,2426.6,2426.2,0.2056]
[1751092687512,4.12126577,2426.5,2426.2,0.2056]
[1751092688834,4.12148467,2426.4,2426.2,0.2056]
[1751092690313,4.12150187,2426.3,2426.2,0.2056]
[1751092690920,4.12137571,2426.4,2426.2,0.2056]
[1751092695609,4.12150187,2426.3,2426.2,0.2056]
[1751092696827,4.12150187,2426.3,2426.1,0.2056]
[1751092703862,4.12167175,2426.2,2426.1,0.2056]
[1751092704728,4.12156869,2426.3,2426.1,0.2056]
[1751092705145,4.12167175,2426.2,2426.1,0.2056]
[1751092705344,4.12138053,2426.4,2426.1,0.2056]
[1751092705553,4.12155812,2426.3,2426.1,0.2056]
[1751092705862,4.12167175,2426.2,2426.1,0.2056]
[1751092706265,4.12156958,2426.3,2426.1,0.2056]
[1751092706734,4.12167175,2426.2,2426.1,0.2056]
[1751092710349,4.12153606,2426.3,2426.1,0.2056]
[1751092710674,4.84903439,2426.4,2426.1,0.2056]
[1751092711668,4.12154893,2426.3,2426.1,0.2056]
[1751092714978,4.67139778,2426.4,2426.1,0.2056]
[1751092716875,5.79654234,2426.3,2426.1,0.2056]
[1751092722186,1.675,2426.3,2426.1,0.2056]
[1751092729796,1.675,2426.3,2426.2,0.8243]
[1751092730580,1.675,2426.3,2426.2,1.0299]
[1751092731000,10.0,2426.5,2426.2,1.0299]
[1751092731185,1.675,2426.4,2426.2,1.0299]
[1751092731398,1.675,2426.5,2426.2,1.0299]
[1751092732982,4.12101203,2426.6,2426.2,1.0299]
[1751092733181,1.675,2426.5,2426.2,1.0299]
[1751092734111,5.79625547,2426.5,2426.2,1.0299]
[1751092735208,4.12125547,2426.5,2426.2,1.0299]
[1751092735507,4.12133201,2426.4,2426.2,1.0299]
[1751092738120,5.79621699,2426.5,2426.2,1.0299]
[1751092738426,4.12121699,2426.5,2426.2,1.0299]
[1751092738624,5.79621699,2426.5,2426.2,1.0299]
[1751092739795,1.675,2426.5,2426.2,1.0299]
[1751092740937,5.79619587,2426.5,2426.2,1.0299]
[1751092747216,4.12133427,2426.4,2426.2,1.0299]
[1751092748908,4.12150187,2426.3,2426.2,0.2056]
[1751092750534,4.12190707,2426.1,2425.9,0.8285]
[1751092750828,4.12190707,2426.1,2426.0,0.2056]
[1751092751400,4.67190707,2426.1,2426.0,0.2056]
[1751092751637,4.12201154,2426.0,2425.9,0.002]
[1751092751823,0.55,2426.2,2425.9,0.002]
[1751092752027,4.67178038,2426.2,2425.9,0.002]
[1751092752437,4.12184901,2426.1,2425.9,0.002]
[1751092753018,4.67184901,2426.1,2426.0,0.7713]
[1751092754239,0.55,2426.1,2426.0,0.7713]
[1751092761351,4.67184163,2426.1,2426.0,0.7713]
[1751092763873,0.55,2426.1,2426.0,0.7713]
[1751092764047,0.55,2426.1,2425.9,0.002]
[1751092767663,4.67184166,2426.1,2425.9,0.002]
[1751092770366,4.12201154,2426.0,2425.9,0.002]
[1751092774870,10.74394626,2426.0,2425.9,0.002]
[1751092775040,10.94954626,2426.0,2425.9,0.002]
[1751092775437,11.2556157,2426.0,2425.9,0.002]
[1751092779166,21.2556157,2426.0,2425.9,0.002]
[1751092793009,29.5386157,2426.0,2425.9,0.002]
[1751092793195,28.03491903,2426.0,2425.9,0.002]
[1751092800530,27.52324959,2426.0,2425.9,0.002]
[1751092803930,22.95501154,2426.0,2425.9,0.002]
[1751092807230,4.32736855,2426.2,2425.9,0.002]
[1751092807533,11.675,2426.2,2426.0,0.7668]
[1751092808634,15.79672758,2426.2,2426.0,0.7668]
[1751092809128,14.12184163,2426.1,2426.0,0.7668]
[1751092818752,4.12184163,2426.1,2426.0,0.7668]
[1751092822446,14.12184163,2426.1,2426.0,0.7668]
[1751092826855,4.12201154,2426.0,2425.9,0.2076]
[1751092827558,4.12201154,2426.0,2425.9,0.002]
[1751092838870,14.12188821,2426.1,2425.9,0.002]
[1751092842475,4.12201154,2426.0,2425.9,0.002]
[1751092862307,14.1218998,2426.1,2425.9,0.002]
[1751092862807,4.12201154,2426.0,2425.9,0.002]
[1751092881795,14.12191674,2426.1,2425.9,0.002]
[1751092881990,4.12201154,2426.0,2425.9,0.002]
[1751092882398,10.0,2426.1,2425.9,0.002]
[1751092883122,14.12185857,2426.1,2425.9,0.002]
[1751092884033,10.0,2426.1,2425.9,0.002]
[1751092884208,10.0,2426.1,2426.0,0.7961]
[1751092884399,4.12156199,2426.3,2426.0,0.7961]
[1751092884597,11.675,2426.2,2426.0,0.7961]
[1751092884799,5.79670102,2426.2,2426.0,0.7961]
[1751092885820,4.12170102,2426.2,2426.0,0.7961]
[1751092885996,5.79670102,2426.2,2426.0,0.7961]
[1751092886629,4.12170102,2426.2,2426.0,0.7961]
[1751092886816,1.675,2426.2,2426.0,0.7961]
[1751092887326,1.675,2426.4,2426.0,0.7961]
[1751092887495,10.0,2426.4,2426.2,0.7927]
[1751092888617,0.2056,2426.7,2426.2,0.7927]
[1751092888895,1.675,2426.6,2426.4,0.2056]
[1751092889100,11.675,2426.6,2426.4,0.2056]
[1751092889830,14.12116216,2426.5,2426.4,0.2056]
[1751092890198,10.0,2426.5,2426.4,0.2056]
[1751092892321,14.12116216,2426.5,2426.4,0.2056]
[1751092902314,21.13794044,2426.5,2425.9,0.8293]
[1751092902526,4.12150187,2426.3,2426.2,0.2056]
[1751092910571,4.12150187,2426.3,2425.9,0.8293]
[1751092910572,4.12198736,2426.1,2425.9,0.8293]
[1751092910869,4.12201154,2426.0,2425.9,0.2076]
[1751092924178,4.12190513,2426.1,2425.9,0.2076]
[1751092925185,4.12184163,2426.1,2425.9,0.2076]
[1751092926252,4.12201154,2426.0,2425.9,0.2076]
[1751092928788,5.55139791,2426.0,2425.9,0.002]
[1751092932604,5.85631843,2426.0,2425.9,0.002]
[1751092948221,15.85631843,2426.0,2425.9,0.002]
[1751092951227,22.47031843,2426.0,2425.9,0.002]
[1751092961240,52.47031843,2426.0,2425.9,0.002]
[1751092963535,60.43031843,2426.0,2425.9,0.002]
[1751092964729,30.43031843,2426.0,2425.9,0.002]
[1751092964961,60.43031843,2426.0,2425.9,0.002]
[1751092971365,30.43031843,2426.0,2425.9,0.002]
[1751092971573,60.43031843,2426.0,2425.9,0.002]
[1751092973617,30.43031843,2426.0,2425.9,0.002]
[1751092973785,60.43031843,2426.0,2425.9,0.002]
[1751092976954,57.83455648,2426.0,2425.9,0.002]
[1751092977085,64.45355648,2426.0,2425.9,0.002]
[1751092977285,65.00355648,2426.0,2425.9,0.002]
[1751092979025,35.00355648,2426.0,2425.9,0.002]
[1751092979235,30.43531843,2426.0,2425.9,0.002]
[1751092979392,34.12417011,2426.0,2425.9,0.002]
[1751092981020,27.50517011,2426.0,2425.9,0.002]
[1751092981329,35.80417011,2426.0,2425.9,0.002]
[1751092984329,27.50517011,2426.0,2425.9,0.002]
[1751092984631,35.80417011,2426.0,2425.9,0.002]
[1751092985440,27.50517011,2426.0,2425.9,0.002]
[1751092985748,17.31852052,2426.0,2425.9,0.002]
[1751092985892,31.44053206,2426.0,2425.9,0.002]
[1751092986087,20.70052052,2426.0,2425.9,0.002]
[1751092986308,27.31852052,2426.0,2425.9,0.002]
[1751092987833,20.70052052,2426.0,2425.9,0.002]
[1751092988034,27.31852052,2426.0,2425.9,0.002]
[1751092989728,20.70052052,2426.0,2425.9,0.002]
[1751092989941,19.35852052,2426.0,2425.9,0.002]
[1751092990235,12.74052052,2426.0,2425.9,0.002]
[1751092990439,19.35752052,2426.0,2425.9,0.002]
[1751092990641,11.68,2426.0,2425.9,0.7923]
[1751093005251,10.0,2426.5,2425.9,0.7923]
[1751093005548,1.679,2426.2,2426.0,0.7901]
[1751093018361,1.679,2426.2,2426.0,1.30230135]
[1751093019180,1.679,2426.2,2426.0,5.42430827]
[1751093019381,1.679,2426.2,2426.1,1.0278]
[1751093028295,0.2056,2426.5,2426.1,1.0278]
[1751093028457,1.679,2426.4,2426.1,1.0278]
[1751093028779,1.679,2426.3,2426.1,1.54297976]
[1751093028980,1.679,2426.3,2426.1,5.66481744]
[1751093029381,1.679,2426.3,2426.1,1.54297976]
[1751093031288,21.28499479,2426.6,2426.1,0.8222]
[1751093031289,1.679,2426.4,2426.1,0.8222]
[1751093031468,1.679,2426.4,2426.2,0.2056]
[1751093035195,0.2056,2426.8,2426.2,0.2056]
[1751093035394,1.679,2426.6,2426.3,0.7937]
[1751093035590,1.679,2426.6,2426.4,0.2056]
[1751093036383,1.679,2426.6,2426.4,0.71768093]
[1751093037673,1.679,2426.6,2426.4,0.2056]
[1751093040698,1.679,2426.7,2426.4,0.2056]
[1751093041695,10.0,2426.8,2426.4,0.2056]
[1751093042099,1.679,2426.7,2426.4,0.2056]
[1751093042284,10.0,2426.8,2426.4,0.71769053]
[1751093042490,11.679,2426.8,2426.6,0.2056]
[1751093045510,15.7996529,2426.8,2426.6,0.2056]
[1751093045712,11.679,2426.8,2426.6,0.2056]
[1751093046807,10.0,2426.8,2426.6,0.2056]
[1751093047011,1.679,2426.7,2426.6,0.2056]
[1751093072823,18.68667246,2426.8,2426.6,0.2056]
[1751093073023,1.677,2426.7,2426.6,0.2056]
[1751093077035,15.79782251,2426.7,2426.6,0.2056]
[1751093077229,19.06564965,2426.7,2426.6,0.2056]
[1751093077429,0.55,2426.6,2426.3,0.2056]
[1751093077634,4.56601021,2426.4,2426.3,0.2056]
[1751093078933,19.23734222,2426.4,2426.3,0.2056]
[1751093079131,4.67150234,2426.3,2425.9,0.002]